fUST/lending_fUST_20240213
["ID","MTS","AMOUNT","RATE_DAILY","PERIOD"]
[313925916,1707829841993,-500.0,0.00035616,14]
[313925918,1707829842002,-500.0,0.00035616,14]
[313925920,1707829842012,-500.0,0.00035616,14]
[313925922,1707829842021,-500.0,0.00035616,14]
[313925924,1707829842031,-500.0,0.00035616,14]
[313925926,1707829842040,-291.46716292,0.00035616,14]
[313925928,1707829842050,-534.81741702,0.00035616,14]
[313925930,1707829842060,-109.76570954,0.00035616,14]
[313925933,1707829842072,-390.23429046,0.00035616,14]
[313925935,1707829842081,-500.0,0.00035616,14]
[313925937,1707829842090,-500.0,0.00035616,14]
[313925939,1707829842099,-484.34570954,0.00035616,14]
[313925941,1707829842111,-15.65429046,0.00035616,14]
[313925943,1707829842120,-500.0,0.00035616,14]
[313925945,1707829842130,-110.39911758,0.00035616,14]
[313926145,1707829846601,-154.86062544,0.00035615,6]
[313926146,1707829846611,-389.60088242,0.00035616,14]
[313926147,1707829846621,-500.0,0.00035616,2]
[313926148,1707829846631,-500.0,0.00035616,14]
[313926149,1707829846640,-592.18675956,0.00035616,14]
[313926150,1707829846650,-500.0,0.00035616,14]
[313926151,1707829846659,-500.0,0.00035616,14]
[313926152,1707829846669,-500.0,0.00035616,14]
[313926153,1707829846678,-500.0,0.00035616,14]
[313926154,1707829846688,-500.0,0.00035616,14]
[313926155,1707829846697,-500.0,0.00035616,14]
[313926156,1707829846706,-500.0,0.00035616,14]
[313926157,1707829846715,-264.21032197,0.00035616,14]
[313926158,1707829846725,-500.0,0.00035616,14]
[313926159,1707829846734,-500.0,0.00035616,14]
[313926160,1707829846743,-500.0,0.00035616,14]
[313926161,1707829846752,-500.0,0.00035616,14]
[313926162,1707829846761,-500.0,0.00035616,14]
[313926163,1707829846770,-500.0,0.00035616,14]
[313926164,1707829846779,-500.0,0.00035616,14]
[313926165,1707829846789,-261.94141061,0.00035616,14]
[313926166,1707829847029,-3.46886057,0.00035616,14]
[313926167,1707829847234,-234.58972882,0.00035616,14]
[313926168,1707829847244,-500.0,0.00035616,14]
[313926169,1707829847254,-500.0,0.00035616,14]
[313926170,1707829847263,-500.0,0.00035616,14]
[313926171,1707829847272,-500.0,0.00035616,14]
[313926172,1707829847281,-500.0,0.00035616,14]
[313926173,1707829847290,-500.0,0.00035616,14]
[313926174,1707829847298,-577.05374795,0.00035616,14]
[313926175,1707829847307,-528.0022967,0.00035616,14]
[313926176,1707829847316,-500.0,0.00035616,14]
[313926177,1707829847325,-669.32,0.00035616,14]
[313926178,1707829847334,-669.32,0.00035616,14]
[313926179,1707829847343,-669.32,0.00035616,14]
[313926180,1707829847352,-604.41907438,0.00035616,14]
[313926185,1707830682433,-17503.0,0.00023517,2]
[313926186,1707830814075,-681.54066331,0.00023504,2]
[313926187,1707830814096,-821.57289367,0.00023505,2]
[313926188,1707830814116,-764.34447308,0.00023506,5]
[313926189,1707830814136,-154.86062544,0.00023506,2]
[313926190,1707830814155,-154.86062544,0.00023506,2]
[313926191,1707830814176,-324.33055598,0.00023506,2]
[313926192,1707830814197,-5687.08,0.00023507,3]
[313926193,1707830814220,-4739.23,0.00023507,3]
[313926194,1707830814240,-273.45700158,0.00023511,2]
[313926195,1707830814265,-1473.74327726,0.00023517,2]
[313926196,1707830814286,-44924.97988424,0.00023517,2]
[313926197,1707830878059,-36090.0,0.00023517,2]
[313926205,1707830949105,-16592.77285,0.00023517,2]
[313926206,1707830954123,-28282.66847033,0.00023517,2]
[313926207,1707830954144,-6193.3823782,0.00025,2]
[313926232,1707831031697,-570.71840827,0.00024999,2]
[313926261,1707831037790,-902.03152274,0.00024999,2]
[313926263,1707831037799,-154.86062544,0.00024999,2]
[313926265,1707831037809,-112.56090082,0.00025,2]
[313926267,1707831037818,-164.22477025,0.00027399,2]
[313926269,1707831037827,-1103.84074006,0.00031607,4]
[313926271,1707831037836,-166.666666,0.00031608,2]
[313926272,1707831037845,-12419.79822918,0.00031856,2]
[313926275,1707831037857,-12480.20177082,0.00031856,2]
[313926278,1707831037866,-312.37152221,0.00031997,4]
[313926280,1707831037876,-981.34824706,0.00032053,2]
[313926281,1707831037886,-673.71295336,0.00032053,30]
[313926284,1707831037895,-183.64752,0.00032119,2]
[313926286,1707831037906,-3000.0,0.00032138,2]
[313926288,1707831037918,-250.0,0.00032332,2]
[313926290,1707831037927,-166.666666,0.00032685,2]
[313926291,1707831037937,-168.945565,0.00032711,2]
[313926293,1707831037946,-153.0,0.00033,2]
[313926295,1707831037956,-447.0,0.00033,2]
[313926298,1707831037965,-155.0,0.00033,2]
[313926299,1707831037976,-447.0,0.00033151,2]
[313926302,1707831037986,-709.50269023,0.00033516,2]
[313926303,1707831037997,-166.666666,0.00033762,2]
[313926305,1707831038007,-153.0,0.00034301,2]
[313926307,1707831038017,-153.0,0.00034378,2]
[313926310,1707831038026,-2065.07,0.00034496,3]
[313926312,1707831038039,-3004.32,0.00034496,3]
[313926314,1707831038051,-49269.04786905,0.00034506,7]
[313926317,1707831038073,-730.95213095,0.00034506,7]
[313926320,1707831038085,-260.72786905,0.00034521,2]
[313926322,1707831038102,-186.27213095,0.00034521,2]
[313926324,1707831038111,-166.666666,0.00034839,2]
[313926327,1707831038121,-153.0,0.00034878,2]
[313926329,1707831038132,-153.0,0.00034878,2]
[313926331,1707831038143,-170.37891386,0.00035,4]
[313926376,1707831041081,-1362.78153387,0.00035,4]
[313926378,1707831041093,-592.91812692,0.00035,2]
[313926380,1707831041104,-33.63372369,0.00035171,7]
[313926578,1707831044157,-119.71254892,0.00035171,7]
[313926580,1707831044167,-240.41322361,0.000353,4]
[313926582,1707831044224,-2301.41677639,0.000353,4]
[313926583,1707831044235,-184.34769162,0.00035416,2]
[313926584,1707831044248,-184.34769161,0.00035449,2]
[313926587,1707831044261,-184.34769161,0.00035483,2]
[313926588,1707831044272,-3605.18,0.00035506,3]
[313926589,1707831044282,-250.0,0.00035515,2]
[313926590,1707831044295,-3447.09550057,0.00035516,2]
[313926661,1707831045822,-1094.6,0.00035516,2]
[313926662,1707831045975,-57052.36871404,0.00035516,2]
[313926673,1707832029091,-652.1152959,0.00023458,2]
[313926674,1707832029113,-154.86062544,0.00023459,4]
[313926675,1707832029136,-1258.40613398,0.00023459,2]
[313926676,1707832031142,-551.57880947,0.00023459,2]
[313926677,1707832031167,-383.74986875,0.00023572,2]
[313926678,1707832031191,-164.46422946,0.00023572,2]
[313926679,1707832031212,-592.63212431,0.00026711,2]
[313926680,1707832031233,-225.797911,0.00027045,2]
[313926681,1707832031255,-14674.54990701,0.00028523,2]
[313926682,1707832101181,-10225.45009299,0.00028523,2]
[313926683,1707832101206,-17553.06385691,0.00028523,7]
[313926684,1707832101233,-162.21176964,0.000299,2]
[313926685,1707832101256,-195.0,0.0003,2]
[313926686,1707832101288,-10680.6057732,0.00030084,2]
[313926687,1707832101311,-166.666666,0.00030201,2]
[313926688,1707832101334,-169.30228,0.00031454,2]
[313926689,1707832101358,-358.5744526,0.00032036,4]
[313926690,1707832101380,-17281.06083642,0.00032049,4]
[313926691,1707832101401,-260.06427224,0.00032051,4]
[313926738,1707832235053,-154.86062544,0.0003205,5]
[313926740,1707832235062,-1206.65662897,0.0003205,4]
[313926742,1707832235075,-232.36869775,0.00032051,4]
[313926745,1707832235085,-884.90799755,0.00032338,2]
[313926972,1707832237996,-2783.26,0.00023572,2]
[313926977,1707832238034,-990.49622309,0.00023572,2]
[313926980,1707832238051,-970.42959623,0.00023572,2]
[313926982,1707832238060,-3392.59920575,0.00032338,2]
[313926983,1707832238071,-260.0,0.00033,2]
[313926985,1707832238080,-1003.49175493,0.00033151,2]
[313926987,1707832238090,-473.00179349,0.00033416,2]
[313926988,1707832238098,-777.0,0.00034095,2]
[313926990,1707832238108,-150.8642222,0.0003428,2]
[313926992,1707832238116,-168.769378,0.00034323,2]
[313926993,1707832238125,-151.224,0.00034555,2]
[313926995,1707832238134,-153.34627262,0.00034898,7]
[313926997,1707832238143,-1533.16044773,0.00035,4]
[313926998,1707832238152,-592.91812692,0.00035,2]
[313927001,1707832238161,-200.0,0.00035161,2]
[313927004,1707832238170,-200.0,0.00035161,2]
[313927006,1707832238179,-200.0,0.00035161,2]
[313927007,1707832238188,-200.0,0.00035161,2]
[313927009,1707832238197,-39.96747596,0.00035161,2]
[313927012,1707832238221,-160.03252404,0.00035161,2]
[313927014,1707832238230,-200.0,0.00035161,2]
[313927016,1707832238239,-200.0,0.00035161,2]
[313927017,1707832238249,-200.0,0.00035161,2]
[313927018,1707832238258,-200.0,0.00035161,2]
[313927019,1707832238267,-200.0,0.00035161,2]
[313927020,1707832238276,-200.0,0.00035161,2]
[313927021,1707832238286,-200.0,0.00035161,2]
[313927023,1707832238295,-400.0,0.00035161,2]
[313927025,1707832238305,-159.95097728,0.00035253,7]
[313927026,1707832238314,-999.69354747,0.00035257,2]
[313927027,1707832238325,-6759.61195121,0.00035258,4]
[313927028,1707832238338,-5664.40483205,0.00035258,4]
[313927029,1707832238348,-3332.49904288,0.00035258,4]
[313927030,1707832238358,-1276.2070171,0.00035505,2]
[313927031,1707832238368,-164.33348128,0.00035514,2]
[313927032,1707832238377,-164.33348125,0.00035515,2]
[313927033,1707832238387,-7715.48014795,0.00035515,4]
[313927034,1707832238396,-164.33348125,0.00035515,2]
[313927035,1707832238405,-5535.05929236,0.00035515,2]
[313927036,1707832238414,-164.33348125,0.00035516,2]
[313927037,1707832238423,-8476.58608211,0.00035516,3]
[313927038,1707832238434,-164.33348125,0.00035516,2]
[313927039,1707832238444,-3032.05862892,0.000356,60]
[313927040,1707832238454,-2000.0,0.000356,24]
[313927041,1707832238464,-2001.633006,0.000356,2]
[313927042,1707832238475,-165.207819,0.000356,2]
[313927043,1707832238484,-3803.95,0.00035604,3]
[313927044,1707832238495,-2000.0,0.0003561,24]
[313927045,1707832238506,-212.18771165,0.00035614,4]
[313927046,1707832238544,-154.87609912,0.00035614,4]
[313927047,1707832238553,-3690.85004162,0.00035614,2]
[313927048,1707832238562,-1202.57082301,0.00035614,4]
[313927049,1707832238574,-565.64808241,0.00035614,4]
[313927050,1707832238583,-157.04477798,0.00035614,4]
[313927051,1707832238592,-155.96070827,0.00035614,4]
[313927052,1707832238601,-1945.27553072,0.00035614,4]
[313927053,1707832238611,-155.47313617,0.00035614,4]
[313927054,1707832238621,-169.52965425,0.00035614,4]
[313927055,1707832238629,-155.33797314,0.00035614,4]
[313927056,1707832238639,-2497.82544686,0.00035614,2]
[313927057,1707832238649,-196.00038664,0.00035614,4]
[313927058,1707832238657,-535.50901674,0.00035614,4]
[313927059,1707832238669,-155.15521974,0.00035614,4]
[313927060,1707832238678,-1291.80378967,0.00035614,4]
[313927061,1707832238687,-160.18585955,0.00035614,4]
[313927062,1707832238696,-4858.39505092,0.00035614,4]
[313927063,1707832238706,-167.54263142,0.00035614,4]
[313927064,1707832238715,-273.54549439,0.00035614,4]
[313927065,1707832238724,-233.2501394,0.00035614,4]
[313927066,1707832238733,-680.75822097,0.00035614,4]
[313927067,1707832238742,-237.25436073,0.00035614,4]
[313927068,1707832238751,-324.74066671,0.00035614,4]
[313927069,1707832238761,-965.69804513,0.00035614,4]
[313927070,1707832238772,-4772.97032196,0.00035614,4]
[313927071,1707832238781,-282.38846912,0.00035614,4]
[313927072,1707832238792,-235.53651105,0.00035614,4]
[313927073,1707832238801,-155.30514029,0.00035614,4]
[313927074,1707832238812,-537.66917544,0.00035614,4]
[313927075,1707832238824,-6303.75421538,0.00035614,4]
[313927076,1707832238833,-927.85609052,0.00035614,4]
[313927077,1707832238842,-1763.87273263,0.00035614,3]
[313927078,1707832238851,-154.93802479,0.00035614,4]
[313927079,1707832238861,-500.0,0.00035614,4]
[313927080,1707832238871,-651.67455721,0.00035614,4]
[313927081,1707832238880,-181.11122538,0.00035614,4]
[313927082,1707832238889,-300.07497138,0.00035615,6]
[313927083,1707832238898,-2050.39168918,0.00035615,4]
[313927084,1707832238908,-250.0,0.00035615,5]
[313927085,1707832238918,-250.0,0.00035615,2]
[313927086,1707832238928,-214.49669528,0.00035615,15]
[313927087,1707832238937,-238.6272098,0.00035615,15]
[313927088,1707832238947,-500.0,0.00035615,15]
[313927089,1707832238956,-500.0,0.00035615,15]
[313927090,1707832238965,-152.02178951,0.00035615,15]
[313927091,1707832238975,-502.81720405,0.00035615,15]
[313927092,1707832238985,-500.0,0.00035615,15]
[313927093,1707832238994,-200.40487878,0.00035615,15]
[313927094,1707832239004,-500.0,0.00035615,15]
[313927095,1707832239014,-167.53449481,0.00035615,15]
[313927096,1707832239024,-156.92946073,0.00035616,4]
[313927097,1707832239033,-300.0,0.00035616,4]
[313927098,1707832239042,-766.53439085,0.00035616,2]
[313927099,1707832239051,-500.0,0.00035616,14]
[313927100,1707832239060,-500.0,0.00035616,14]
[313927101,1707832239071,-500.0,0.00035616,14]
[313927102,1707832239080,-500.0,0.00035616,14]
[313927103,1707832239089,-500.0,0.00035616,14]
[313927104,1707832239098,-500.0,0.00035616,14]
[313927105,1707832239107,-500.0,0.00035616,14]
[313927106,1707832239116,-500.0,0.00035616,14]
[313927107,1707832239125,-500.0,0.00035616,14]
[313927108,1707832239134,-500.0,0.00035616,14]
[313927109,1707832239143,-500.0,0.00035616,14]
[313927110,1707832239152,-500.0,0.00035616,14]
[313927111,1707832239162,-500.0,0.00035616,14]
[313927112,1707832239171,-500.0,0.00035616,14]
[313927113,1707832239180,-500.0,0.00035616,14]
[313927114,1707832239191,-500.0,0.00035616,14]
[313927115,1707832239201,-500.0,0.00035616,14]
[313927116,1707832239210,-500.0,0.00035616,14]
[313927117,1707832239219,-500.0,0.00035616,14]
[313927118,1707832239229,-500.0,0.00035616,14]
[313927119,1707832239238,-500.0,0.00035616,14]
[313927120,1707832239248,-500.0,0.00035616,14]
[313927121,1707832239257,-578.36414991,0.00035616,14]
[313927122,1707832239266,-151.0,0.00035616,2]
[313927123,1707832239343,-500.0,0.00035616,14]
[313927124,1707832239368,-500.0,0.00035616,14]
[313927125,1707832239378,-500.0,0.00035616,14]
[313927126,1707832239389,-500.0,0.00035616,14]
[313927127,1707832239399,-500.0,0.00035616,14]
[313927128,1707832239409,-500.0,0.00035616,14]
[313927129,1707832239419,-500.0,0.00035616,14]
[313927130,1707832239430,-500.0,0.00035616,14]
[313927131,1707832239439,-500.0,0.00035616,14]
[313927132,1707832239450,-223.02086186,0.00035616,14]
[313927133,1707832239459,-500.0,0.00035616,14]
[313927134,1707832239469,-500.0,0.00035616,14]
[313927135,1707832239478,-500.0,0.00035616,14]
[313927136,1707832239487,-500.0,0.00035616,14]
[313927137,1707832239496,-500.0,0.00035616,14]
[313927138,1707832239506,-500.0,0.00035616,14]
[313927139,1707832239515,-500.0,0.00035616,14]
[313927140,1707832239524,-500.0,0.00035616,14]
[313927141,1707832239534,-500.0,0.00035616,14]
[313927142,1707832239543,-500.0,0.00035616,14]
[313927143,1707832239552,-500.0,0.00035616,14]
[313927144,1707832239561,-500.0,0.00035616,14]
[313927145,1707832239574,-500.0,0.00035616,14]
[313927146,1707832239583,-500.0,0.00035616,14]
[313927147,1707832239593,-500.0,0.00035616,14]
[313927148,1707832239602,-500.0,0.00035616,14]
[313927149,1707832239611,-500.0,0.00035616,14]
[313927150,1707832239620,-503.26211495,0.00035616,14]
[313927151,1707832239630,-500.0,0.00035616,2]
[313927152,1707832239639,-500.0,0.00035616,2]
[313927153,1707832239649,-500.0,0.00035616,2]
[313927154,1707832239662,-500.0,0.00035616,2]
[313927155,1707832239672,-500.0,0.00035616,14]
[313927156,1707832239680,-500.0,0.00035616,14]
[313927157,1707832239690,-500.0,0.00035616,14]
[313927158,1707832239699,-500.0,0.00035616,14]
[313927159,1707832239708,-500.0,0.00035616,14]
[313927160,1707832239718,-500.0,0.00035616,14]
[313927161,1707832239727,-500.0,0.00035616,14]
[313927162,1707832239736,-500.0,0.00035616,14]
[313927163,1707832239747,-500.0,0.00035616,14]
[313927164,1707832239756,-500.0,0.00035616,14]
[313927165,1707832239765,-500.0,0.00035616,14]
[313927166,1707832239774,-500.0,0.00035616,14]
[313927167,1707832239783,-500.0,0.00035616,14]
[313927168,1707832239793,-500.0,0.00035616,14]
[313927169,1707832239802,-500.0,0.00035616,14]
[313927170,1707832239811,-500.0,0.00035616,14]
[313927171,1707832239822,-500.0,0.00035616,14]
[313927172,1707832239832,-500.0,0.00035616,14]
[313927173,1707832239841,-500.0,0.00035616,14]
[313927174,1707832239850,-500.0,0.00035616,14]
[313927175,1707832239860,-500.0,0.00035616,14]
[313927176,1707832239871,-500.0,0.00035616,14]
[313927177,1707832239881,-500.0,0.00035616,14]
[313927178,1707832239890,-500.0,0.00035616,7]
[313927179,1707832239899,-500.0,0.00035616,7]
[313927180,1707832239908,-216.88644087,0.00035616,7]
[313927181,1707832239916,-500.0,0.00035616,14]
[313927182,1707832239925,-500.0,0.00035616,7]
[313927183,1707832239934,-500.0,0.00035616,7]
[313927184,1707832239943,-500.0,0.00035616,14]
[313927185,1707832239952,-500.0,0.00035616,14]
[313927186,1707832239961,-500.0,0.00035616,14]
[313927187,1707832239970,-500.0,0.00035616,14]
[313927188,1707832239978,-500.0,0.00035616,14]
[313927189,1707832239987,-500.0,0.00035616,14]
[313927190,1707832239996,-500.0,0.00035616,14]
[313927191,1707832240004,-500.0,0.00035616,14]
[313927192,1707832240013,-500.0,0.00035616,14]
[313927193,1707832240022,-500.0,0.00035616,14]
[313927195,1707832240031,-175.26370295,0.00035616,14]
[313927197,1707832240040,-500.0,0.00035616,14]
[313927198,1707832240048,-151.0,0.00035616,2]
[313927199,1707832240057,-500.0,0.00035616,14]
[313927200,1707832240066,-500.0,0.00035616,2]
[313927201,1707832240078,-500.0,0.00035616,14]
[313927203,1707832240087,-500.0,0.00035616,14]
[313927206,1707832240097,-151.0,0.00035616,2]
[313927207,1707832240105,-151.120911,0.00035616,2]
[313927209,1707832240115,-151.0,0.00035616,2]
[313927210,1707832240124,-151.0,0.00035616,2]
[313927211,1707832240133,-151.0,0.00035616,2]
[313927212,1707832240142,-152.817652,0.00035616,2]
[313927213,1707832240152,-560.47,0.00035616,14]
[313927214,1707832240161,-560.47,0.00035616,14]
[313927215,1707832240170,-560.47,0.00035616,14]
[313927216,1707832240179,-560.47,0.00035616,14]
[313927218,1707832240188,-560.47,0.00035616,14]
[313927219,1707832240197,-560.47,0.00035616,14]
[313927221,1707832240207,-560.47,0.00035616,14]
[313927223,1707832240216,-560.47,0.00035616,14]
[313927224,1707832240227,-560.47,0.00035616,14]
[313927225,1707832240237,-560.47,0.00035616,14]
[313927226,1707832240246,-560.47,0.00035616,14]
[313927227,1707832240256,-560.47,0.00035616,14]
[313927229,1707832240265,-560.47,0.00035616,14]
[313927230,1707832240274,-560.47,0.00035616,14]
[313927232,1707832240283,-560.47,0.00035616,14]
[313927233,1707832240292,-560.47,0.00035616,14]
[313927234,1707832240302,-560.47,0.00035616,14]
[313927235,1707832240311,-560.47,0.00035616,14]
[313927236,1707832240323,-560.47,0.00035616,14]
[313927237,1707832240332,-560.47,0.00035616,14]
[313927238,1707832240341,-560.47,0.00035616,14]
[313927239,1707832240350,-560.47,0.00035616,14]
[313927240,1707832240359,-560.47,0.00035616,14]
[313927241,1707832240368,-560.51092562,0.00035616,14]
[313927242,1707832240377,-190.019564,0.00035616,2]
[313927243,1707832240387,-1000.0,0.00035616,2]
[313927244,1707832240396,-1000.0,0.00035616,2]
[313927245,1707832240405,-1000.0,0.00035616,2]
[313927246,1707832240414,-500.0,0.00035616,14]
[313927247,1707832240423,-500.0,0.00035616,14]
[313927248,1707832240432,-500.0,0.00035616,14]
[313927249,1707832240442,-500.0,0.00035616,14]
[313927250,1707832240451,-500.0,0.00035616,14]
[313927251,1707832240460,-500.0,0.00035616,14]
[313927252,1707832240469,-500.0,0.00035616,14]
[313927253,1707832240478,-500.0,0.00035616,14]
[313927254,1707832240487,-500.0,0.00035616,14]
[313927255,1707832240496,-500.0,0.00035616,14]
[313927256,1707832240505,-2294.38,0.00035616,14]
[313927257,1707832240514,-2294.38,0.00035616,14]
[313927258,1707832240525,-2294.38,0.00035616,14]
[313927259,1707832240536,-2294.38,0.00035616,14]
[313927260,1707832240547,-2294.38,0.00035616,14]
[313927261,1707832240557,-2294.38,0.00035616,14]
[313927262,1707832240566,-2294.38,0.00035616,14]
[313927263,1707832240577,-2294.38,0.00035616,14]
[313927264,1707832240586,-2294.38,0.00035616,14]
[313927265,1707832240596,-2294.38,0.00035616,14]
[313927266,1707832240606,-2294.38,0.00035616,14]
[313927267,1707832240615,-2294.38,0.00035616,14]
[313927268,1707832240624,-2294.38,0.00035616,14]
[313927269,1707832240633,-2294.38,0.00035616,14]
[313927270,1707832240641,-2294.38,0.00035616,14]
[313927271,1707832240650,-2294.38,0.00035616,14]
[313927272,1707832240659,-2294.38,0.00035616,14]
[313927273,1707832240672,-2294.38,0.00035616,14]
[313927274,1707832240681,-2294.38,0.00035616,14]
[313927275,1707832240690,-2294.38,0.00035616,14]
[313927276,1707832240699,-2294.38,0.00035616,14]
[313927277,1707832240710,-2294.38,0.00035616,14]
[313927278,1707832240720,-2294.38,0.00035616,14]
[313927279,1707832240730,-2294.39288121,0.00035616,14]
[313927280,1707832240739,-500.0,0.00035616,14]
[313927281,1707832240750,-500.0,0.00035616,14]
[313927282,1707832240760,-500.0,0.00035616,14]
[313927283,1707832240769,-500.0,0.00035616,14]
[313927284,1707832240779,-500.0,0.00035616,14]
[313927285,1707832240788,-2171.57,0.00035616,14]
[313927286,1707832240797,-500.0,0.00035616,14]
[313927287,1707832240806,-2171.57,0.00035616,14]
[313927288,1707832240815,-500.0,0.00035616,14]
[313927289,1707832240826,-2171.57,0.00035616,14]
[313927290,1707832240835,-500.0,0.00035616,14]
[313927291,1707832240844,-2171.57,0.00035616,14]
[313927292,1707832240853,-500.0,0.00035616,14]
[313927293,1707832240863,-2171.57,0.00035616,14]
[313927294,1707832240872,-500.0,0.00035616,14]
[313927295,1707832240881,-500.0,0.00035616,14]
[313927296,1707832240890,-2171.57,0.00035616,14]
[313927297,1707832240899,-500.0,0.00035616,14]
[313927298,1707832240909,-2171.57,0.00035616,14]
[313927299,1707832240918,-500.0,0.00035616,14]
[313927300,1707832240927,-2171.57,0.00035616,14]
[313927301,1707832240936,-2171.57,0.00035616,14]
[313927303,1707832240946,-2171.57,0.00035616,14]
[313927305,1707832240957,-500.0,0.00035616,14]
[313927306,1707832240966,-1648.75650143,0.00035616,14]
[313927318,1707832241414,-155.0,0.00033,2]
[313927320,1707832241424,-157.2633,0.00035604,3]
[313927322,1707832241436,-2596.03862855,0.00035604,3]
[313927324,1707832241449,-416.65807145,0.00035604,3]
[313927326,1707832241458,-522.81349857,0.00035616,14]
[313927327,1707832241467,-1883.46741737,0.00035616,14]
[313927329,1707832241479,-288.10258263,0.00035616,14]
[313927330,1707832241489,-2171.57,0.00035616,14]
[313927331,1707832241499,-6.07249902,0.00035616,14]
[313927332,1707832241512,-2165.49750098,0.00035616,14]
[313927333,1707832241521,-2171.57,0.00035616,14]
[313927334,1707832241530,-2171.57,0.00035616,14]
[313927335,1707832241540,-2171.57,0.00035616,14]
[313927336,1707832241549,-2171.57,0.00035616,14]
[313927337,1707832241559,-2171.57,0.00035616,14]
[313927338,1707832241568,-2171.57,0.00035616,14]
[313927339,1707832241580,-2171.57,0.00035616,14]
[313927340,1707832241590,-2171.57,0.00035616,14]
[313927341,1707832241599,-2171.57,0.00035616,14]
[313927342,1707832241609,-2171.7933289,0.00035616,14]
[313927343,1707832241619,-500.0,0.00035616,14]
[313927344,1707832241628,-500.0,0.00035616,14]
[313927345,1707832241638,-500.0,0.00035616,14]
[313927346,1707832241647,-500.0,0.00035616,14]
[313927347,1707832241661,-500.0,0.00035616,14]
[313927348,1707832241745,-500.0,0.00035616,14]
[313927349,1707832241755,-219.57,0.00035616,14]
[313927350,1707832241765,-500.0,0.00035616,14]
[313927351,1707832241775,-500.0,0.00035616,14]
[313927352,1707832241784,-500.0,0.00035616,14]
[313927353,1707832241793,-500.0,0.00035616,14]
[313927354,1707832241802,-500.0,0.00035616,14]
[313927355,1707832241811,-500.0,0.00035616,14]
[313927356,1707832241820,-500.0,0.00035616,14]
[313927357,1707832241829,-500.0,0.00035616,14]
[313927358,1707832241839,-500.0,0.00035616,14]
[313927359,1707832241849,-500.0,0.00035616,14]
[313927360,1707832241858,-500.0,0.00035616,14]
[313927361,1707832241868,-500.0,0.00035616,14]
[313927362,1707832241877,-545.26,0.00035616,14]
[313927363,1707832241886,-500.0,0.00035616,14]
[313927364,1707832241895,-574.14,0.00035616,14]
[313927365,1707832241904,-574.14,0.00035616,14]
[313927366,1707832241914,-574.14,0.00035616,14]
[313927367,1707832241923,-574.14,0.00035616,14]
[313927368,1707832241932,-574.14,0.00035616,14]
[313927369,1707832241941,-574.14,0.00035616,14]
[313927370,1707832241950,-574.14,0.00035616,14]
[313927371,1707832241959,-574.14,0.00035616,14]
[313927372,1707832241968,-574.14,0.00035616,14]
[313927373,1707832241978,-574.14,0.00035616,14]
[313927374,1707832241987,-574.14,0.00035616,14]
[313927375,1707832241996,-574.14,0.00035616,14]
[313927376,1707832242006,-574.14,0.00035616,14]
[313927377,1707832242015,-574.14,0.00035616,14]
[313927378,1707832242024,-574.14,0.00035616,14]
[313927379,1707832242033,-574.14,0.00035616,14]
[313927380,1707832242042,-574.14,0.00035616,14]
[313927381,1707832242051,-574.14,0.00035616,14]
[313927382,1707832242061,-574.14,0.00035616,14]
[313927383,1707832242070,-574.14,0.00035616,14]
[313927384,1707832242079,-574.14,0.00035616,14]
[313927385,1707832242088,-574.14,0.00035616,14]
[313927386,1707832242097,-574.14,0.00035616,14]